fUST/lending_fUST_20260211
["ID","MTS","AMOUNT","RATE_DAILY","PERIOD"]
[405100107,1770811625964,-613.6272569,0.00032725,2]
[405100108,1770811625985,-258.0,0.00032949,120]
[405100109,1770811626004,-546.40648944,0.000332,117]
[405100110,1770811626024,-546.40648941,0.000332,117]
[405100111,1770811626044,-304.5756728,0.00033283,2]
[405100112,1770811626064,-1390.762,0.00033418,2]
[405100113,1770811626082,-633.0,0.00033418,2]
[405100114,1770811626101,-807.109,0.00033418,2]
[405100115,1770811626120,-500.0,0.0003345,2]
[405100116,1770811626140,-500.0,0.0003349,2]
[405100117,1770811626159,-500.0,0.0003351,2]
[405100118,1770811626178,-420.0,0.00033645,3]
[405100119,1770811626197,-500.0,0.00033979,2]
[405100120,1770811626218,-500.0,0.00033989,2]
[405100121,1770811626238,-500.0,0.00033989,2]
[405100122,1770811626257,-500.0,0.00033989,2]
[405100123,1770811626277,-500.0,0.00033989,2]
[405100124,1770811626299,-1090.89290116,0.00034082,2]
[405100125,1770811626321,-600.0,0.00034119,30]
[405100126,1770811626343,-3423.26067304,0.00034227,2]
[405100127,1770811626365,-3412.2810775,0.00034576,2]
[405100128,1770811626386,-546.40648941,0.00034744,120]
[405100129,1770811626407,-500.0,0.00034789,2]
[405100130,1770811626426,-547.95245642,0.00034799,2]
[405100131,1770811626447,-2132.0857948,0.00034918,2]
[405100132,1770811626467,-285.0,0.00034949,120]
[405100133,1770811626487,-526.02378598,0.00034986,5]
[405100134,1770811626507,-203.43147983,0.00035071,2]
[405100135,1770811626526,-349.0,0.0003513,14]
[405100136,1770811626546,-349.0,0.0003513,14]
[405100137,1770811626570,-349.0,0.0003513,14]
[405100138,1770811626589,-360.0198023,0.0003513,14]
[405100139,1770811626611,-300.0,0.00035208,2]
[405100140,1770811626631,-150.333,0.00035308,2]
[405100141,1770811626653,-223.786,0.00035308,2]
[405100142,1770811626673,-150.352,0.00035308,2]
[405100143,1770811626693,-1041.66666667,0.00035348,2]
[405100144,1770811626713,-1704.52015806,0.00035438,2]
[405100145,1770811626732,-500.0,0.00035616,120]
[405100146,1770811626754,-168.0,0.00035735,2]
[405100147,1770811626779,-3844.15386129,0.00035805,2]
[405100148,1770811626799,-742.38915205,0.00035813,2]
[405100149,1770811626820,-168.0,0.00035835,2]
[405100150,1770811626841,-168.0,0.00035848,2]
[405100151,1770811626864,-168.0,0.00035939,2]
[405100152,1770811626884,-200.0,0.00036,120]
[405100153,1770811626904,-393.0,0.00036,120]
[405100154,1770811626924,-205.83077761,0.0003621,2]
[405100155,1770811626944,-681.337556,0.00036218,2]
[405100156,1770811626965,-500.0,0.00036218,30]
[405100157,1770811626987,-267.71329208,0.0003624,2]
[405100158,1770811627011,-666.0,0.00036243,30]
[405100159,1770811627034,-535.08054137,0.00036264,2]
[405100160,1770811627055,-1376.0,0.00036418,2]
[405100161,1770811627078,-627.0,0.00036418,2]
[405100162,1770811627101,-10000.0,0.000365,14]
[405100163,1770811627126,-20654.58,0.0003661,10]
[405100164,1770811627151,-721.04,0.0003662,3]
[405100165,1770811627174,-24785.49,0.0003662,10]
[405100166,1770811627196,-742.38915205,0.0003662,3]
[405100167,1770811627218,-13572.4220209,0.0003662,3]
[405100168,1770811627239,-2264.15096076,0.0003662,3]
[405100169,1770811627341,-638.73081535,0.0003663,2]
[405100170,1770811627362,-151.0,0.0003663,31]
[405100171,1770811627384,-151.0,0.0003663,31]
[405100172,1770811627405,-151.0,0.0003663,31]
[405100173,1770811627424,-151.0,0.0003663,31]
[405100174,1770811627445,-151.0,0.0003663,31]
[405100175,1770811627468,-29686.73712125,0.0003663,2]
[405100176,1770811630077,-150.50429,0.000352,2]
[405100177,1770811630098,-1429.85559168,0.0003661,10]
[405100178,1770811649082,-986.55384723,0.00030137,120]
[405100179,1770811804059,691.2484062,0.00025583,2]
[405100182,1770811832749,1959.21334561,0.00024953,2]
[405100183,1770811832781,2004.67206111,0.00024953,2]
[405100214,1770811837885,-840.43686899,0.00026765,2]
[405100318,1770811839303,-330.69330794,0.00026765,2]
[405100319,1770811839313,-1651.01194766,0.00028339,2]
[405100320,1770811839323,-2130.8937184,0.00029913,2]
[405100321,1770811839333,-2324.94178706,0.0003129,2]
[405100322,1770811839343,-240.93583832,0.0003139,2]
[405100323,1770811839353,-2610.77548913,0.00031487,2]
[405100324,1770811839363,-200.0,0.00032659,2]
[405100325,1770811839374,-214.42435926,0.00032745,2]
[405100326,1770811839386,-500.0,0.00032745,2]
[405100327,1770811839395,-500.0,0.00032745,2]
[405100328,1770811839405,-500.0,0.00032745,2]
[405100330,1770811839414,-500.0,0.00032745,2]
[405100331,1770811839424,-500.0,0.00032745,2]
[405100332,1770811839433,-433.68450898,0.00032746,2]
[405100333,1770811839442,-3090.65725986,0.00033062,2]
[405100334,1770811839451,-500.0,0.00033867,7]
[405100335,1770811839460,-770.99468263,0.00034102,2]
[405100337,1770811839469,-1488.37435949,0.00034636,2]
[405100357,1770811839990,-3e-08,0.00032745,2]
[405100457,1770811984863,500.0,0.00013273,2]
[405100458,1770811984926,1000.0,0.00013821,2]
[405100459,1770811984974,1502.01775404,0.00014368,2]
[405100460,1770812430658,400.0,0.00030137,120]
[405100462,1770812746151,-1200.0,0.00024997,2]
[405100463,1770812746177,-150.0,0.00024998,2]
[405100464,1770812746202,-300.0,0.00024998,2]
[405100465,1770812746225,-300.0,0.00024998,2]
[405100466,1770812746249,-300.0,0.00024998,2]
[405100467,1770812746275,-300.0,0.00024998,2]
[405100468,1770812746299,-300.0,0.00024999,2]
[405100469,1770812746323,-121.32239912,0.00024999,2]
[405100470,1770812833086,-206.71793871,0.00024998,2]
[405100473,1770812923146,-287.78254614,0.0002465,2]
[405100474,1770812950161,-266.17358988,0.00024403,2]
[405100475,1770812950182,-5507.75786485,0.0002465,2]
[405100476,1770812950202,-272.75745173,0.00024748,2]
[405100477,1770812950224,-52.28206129,0.00024998,2]
[405100478,1770812950246,-150.0,0.00024999,2]
[405100479,1770812950266,-378.67760088,0.00024999,2]
[405100480,1770812950286,-500.0,0.00024999,2]
[405100481,1770812950307,-500.0,0.00024999,2]
[405100482,1770812950423,-500.0,0.00024999,2]
[405100483,1770812950447,-500.0,0.00024999,2]
[405100484,1770812950469,-500.0,0.00024999,2]
[405100485,1770812950491,-500.0,0.00024999,2]
[405100486,1770812950512,-500.0,0.00024999,2]
[405100487,1770812950532,-453.54496775,0.00024999,2]
[405100488,1770812950552,-21663.73506788,0.00025,2]
[405100489,1770812950572,-734.29890662,0.00025372,2]
[405100490,1770813009190,779.47501829,0.00025583,2]
[405100526,1770813031836,-177.0,0.00026999,2]
[405100528,1770813031846,-1490.09081579,0.00027042,2]
[405100530,1770813031856,-158.08581822,0.00027397,5]
[405100531,1770813031866,-1.82336599,0.00027777,5]
[405100532,1770813031878,-998.17663401,0.00027777,5]
[405100533,1770813031888,-1524.82336599,0.00028892,2]
[405100534,1770813031900,-274.879993,0.00028892,2]
[405100550,1770813037942,-401.00325431,0.00028892,2]
[405100551,1770813037952,-204.0,0.00028999,2]
[405100552,1770813037962,-402.30054,0.00029387,2]
[405100553,1770813037976,-572.92829634,0.0003,2]
[405100554,1770813037985,-169.8874713,0.00030615,2]
[405100555,1770813037995,-330.69054982,0.00030624,2]
[405100556,1770813038006,-71.60999018,0.00030624,2]
[405100557,1770813038017,-769.33259018,0.00030743,2]
[405100558,1770813038996,500.0,0.00024999,5]
[405100573,1770813040153,-3e-08,0.00030743,2]
[405100574,1770813040170,-2112.3528506,0.00030743,2]
[405100576,1770813040265,-29.63697,0.00030743,2]
[405100577,1770813040275,-231.0,0.00030999,2]
[405100578,1770813040285,-35.08914159,0.00031862,2]
[405100595,1770813046043,-367.21139841,0.00031862,2]
[405100596,1770813046052,-286.5850763,0.00031883,2]
[405100598,1770813046063,-1251.1944916,0.0003206,2]
[405100600,1770813046072,-3621.93820831,0.00032593,2]
[405100602,1770813046081,-258.0,0.00032999,120]
[405100604,1770813046090,-402.30054,0.00033099,2]
[405100606,1770813046099,-168.0,0.00034163,2]
[405100607,1770813046109,-402.30054,0.00034336,2]
[405100608,1770813046119,-4332.55400582,0.00034444,2]
[405100609,1770813046130,-394.45783758,0.00034897,7]
[405100610,1770813046139,-37745.8017664,0.00034898,2]
[405100611,1770813046148,-490.38300611,0.00034899,2]
[405100612,1770813046157,-2454.50902761,0.00034899,2]
[405100613,1770813046167,-871.79201085,0.00034899,2]
[405100614,1770813046176,-1204.67919161,0.00034899,2]
[405100615,1770813046185,-1734.73803592,0.00034899,2]
[405100616,1770813046194,-272.43500339,0.00034905,2]
[405100617,1770813046204,-636.29211667,0.00034914,2]
[405100618,1770813046213,-500.0,0.00034917,5]
[405100619,1770813046222,-285.0,0.00034999,120]
[405100620,1770813046231,-167.0,0.00035,2]
[405100621,1770813046240,-5500.0,0.00035,2]
[405100622,1770813046249,-187.665,0.00035071,2]
[405100623,1770813046259,-150.0,0.00035342,60]
[405100624,1770813046268,-742.38915205,0.00035348,2]
[405100625,1770813046277,-150.0,0.00035397,60]
[405100626,1770813046286,-150.0,0.00035452,60]
[405100627,1770813046295,-150.0,0.00035506,60]
[405100628,1770813046305,-159.77450229,0.00035561,60]
[405100629,1770813046314,-402.30054,0.00035573,2]
[405100630,1770813046323,-8580.81,0.000356,10]
[405100631,1770813046333,-500.0,0.00035616,120]
[405100632,1770813046342,-151.0,0.00035616,31]
[405100633,1770813046351,-151.0,0.00035616,31]
[405100634,1770813046360,-500.0,0.0003563,120]
[405100635,1770813046369,-500.0,0.0003563,120]
[405100636,1770813046378,-500.0,0.0003563,120]
[405100637,1770813046387,-500.0,0.0003563,120]
[405100638,1770813046396,-500.0,0.0003563,120]
[405100639,1770813046405,-500.0,0.0003563,120]
[405100640,1770813046414,-500.0,0.0003563,120]
[405100641,1770813046423,-500.0,0.0003563,120]
[405100642,1770813046432,-522.23,0.0003563,120]
[405100643,1770813046441,-368.98903736,0.00035931,2]
[405100644,1770813046450,-2111.0003468,0.0003599,2]
[405100645,1770813046459,-290.84769274,0.00036071,2]
[405100646,1770813046469,-1362.17501696,0.00036071,2]
[405100647,1770813046478,-4957.32561454,0.00036295,2]
[405100648,1770813046487,-1893.1451117,0.00036398,2]
[405100649,1770813046496,-3000.0,0.000364,3]
[405100650,1770813046506,-2644.9615328,0.0003644,2]
[405100651,1770813046515,-500.0,0.00036445,2]
[405100652,1770813046524,-500.0,0.00036445,5]
[405100653,1770813046533,-3000.0,0.000365,3]
[405100654,1770813046542,-3562.7607805,0.00036579,3]
[405100655,1770813046551,-3562.7607805,0.00036609,3]
[405100656,1770813046561,-151.0,0.00036619,31]
[405100657,1770813046571,-500.0,0.00036619,2]
[405100658,1770813046580,-151.0,0.00036619,31]
[405100659,1770813046591,-151.0,0.00036619,31]
[405100660,1770813046600,-265.30867804,0.00036619,10]
[405100661,1770813046610,-500.0,0.00036619,10]
[405100662,1770813046619,-257.97775712,0.00036619,10]
[405100663,1770813046628,-500.0,0.00036619,10]
[405100664,1770813046638,-250.0,0.00036619,10]
[405100665,1770813046647,-500.0,0.00036619,10]
[405100666,1770813046657,-250.0,0.00036619,10]
[405100667,1770813046666,-500.0,0.00036619,10]
[405100668,1770813046675,-250.0,0.00036619,10]
[405100669,1770813046684,-500.0,0.00036619,10]
[405100670,1770813046693,-250.0,0.00036619,10]
[405100671,1770813046707,-500.0,0.00036619,10]
[405100672,1770813046716,-250.0,0.00036619,10]
[405100673,1770813046725,-500.0,0.00036619,10]
[405100674,1770813046734,-250.0,0.00036619,10]
[405100675,1770813046743,-250.0,0.00036619,10]
[405100676,1770813046752,-500.0,0.00036619,10]
[405100677,1770813046762,-250.0,0.00036619,10]
[405100678,1770813046771,-250.0,0.00036619,10]
[405100679,1770813046781,-500.0,0.00036619,10]
[405100680,1770813046791,-209.40437684,0.00036619,10]
[405100681,1770813046801,-250.0,0.00036619,10]
[405100682,1770813046811,-250.0,0.00036619,10]
[405100683,1770813046820,-500.0,0.00036619,10]
[405100684,1770813046830,-217.15233878,0.00036619,10]
[405100685,1770813046839,-250.0,0.00036619,10]
[405100686,1770813046848,-250.0,0.00036619,10]
[405100687,1770813046861,-500.0,0.00036619,10]
[405100688,1770813046870,-225.18697532,0.00036619,10]
[405100689,1770813046880,-250.0,0.00036619,10]
[405100690,1770813046889,-250.0,0.00036619,10]
[405100691,1770813046899,-233.51889341,0.00036619,10]
[405100692,1770813046909,-242.15909246,0.00036619,10]
[405100693,1770813046918,-251.11897888,0.00036619,10]
[405100694,1770813046928,-250.0,0.00036619,10]
[405100695,1770813046937,-260.4103811,0.00036619,10]
[405100696,1770813046946,-270.0455652,0.00036619,10]
[405100697,1770813046955,-500.0,0.00036619,10]
[405100698,1770813046964,-280.03725112,0.00036619,10]
[405100699,1770813046978,-500.0,0.00036619,10]
[405100700,1770813046988,-250.0,0.00036619,10]
[405100701,1770813046997,-290.39862941,0.00036619,10]
[405100702,1770813047006,-301.1433787,0.00036619,10]
[405100703,1770813047018,-250.0,0.00036619,10]
[405100704,1770813047026,-250.0,0.00036619,10]
[405100705,1770813047035,-250.0,0.00036619,10]
[405100706,1770813047045,-250.0,0.00036619,10]
[405100707,1770813047054,-250.0,0.00036619,10]
[405100708,1770813047063,-250.0,0.00036619,10]
[405100709,1770813047072,-250.0,0.00036619,10]
[405100710,1770813047084,-250.0,0.00036619,10]
[405100711,1770813047094,-250.0,0.00036619,10]
[405100712,1770813047103,-500.0,0.00036619,10]
[405100713,1770813047112,-250.0,0.00036619,10]
[405100714,1770813047121,-266.91873962,0.00036619,10]
[405100715,1770813047130,-250.0,0.00036619,10]
[405100716,1770813047138,-500.0,0.00036619,10]
[405100717,1770813047151,-250.0,0.00036619,10]
[405100718,1770813047160,-250.0,0.00036619,10]
[405100719,1770813047171,-500.0,0.00036619,10]
[405100720,1770813047182,-250.0,0.00036619,10]
[405100721,1770813047192,-250.0,0.00036619,10]
[405100722,1770813047203,-500.0,0.00036619,10]
[405100723,1770813047213,-250.0,0.00036619,10]
[405100724,1770813047223,-250.0,0.00036619,10]
[405100725,1770813047233,-500.0,0.00036619,10]
[405100726,1770813047242,-250.0,0.00036619,10]
[405100727,1770813047252,-250.0,0.00036619,10]
[405100728,1770813047261,-500.0,0.00036619,10]
[405100729,1770813047271,-250.0,0.00036619,10]
[405100730,1770813047280,-250.0,0.00036619,10]
[405100731,1770813047289,-511.70606197,0.00036619,10]
[405100732,1770813047298,-250.0,0.00036619,10]
[405100733,1770813047307,-250.0,0.00036619,10]
[405100734,1770813047316,-273.28855637,0.00036619,10]
[405100735,1770813047324,-547.87106868,0.00036619,5]
[405100736,1770813047334,-3562.7607805,0.00036619,3]
[405100737,1770813047347,-1279.94483685,0.0003662,3]
[405100738,1770813047356,-904.6081996,0.0003662,3]
[405100739,1770813047367,-10688.2823415,0.0003662,3]
[405100740,1770813047453,-9000.0,0.00036629,2]
[405100741,1770813047464,-9000.0,0.00036629,2]
[405100742,1770813047475,-9000.0,0.00036629,2]
[405100743,1770813047486,-500.0,0.00036629,2]
[405100744,1770813047495,-500.0,0.00036629,2]
[405100745,1770813047505,-314.71104371,0.00036629,2]
[405100746,1770813047514,-151.0,0.00036629,31]
[405100747,1770813047524,-151.0,0.00036629,31]
[405100748,1770813047534,-2007.15988958,0.00036629,120]
[405100749,1770813047544,-33883.55499709,0.0003663,2]
[405100750,1770813047666,694.92056403,0.00024953,2]
[405100751,1770813047688,292.53125855,0.00024953,2]
[405100752,1770813062148,211.2784052,0.00024953,2]
[405100753,1770813140290,500.0,0.00013699,2]
[405100754,1770813140330,790.2,0.00014247,2]
[405100755,1770813783777,500.0,0.00013699,2]
[405100756,1770813783824,838.9000881,0.00014247,2]
[405100757,1770813814161,77477.0,0.000237,2]
[405100759,1770813946143,-250.49153731,0.00024749,2]
[405100760,1770813946162,-521.60895629,0.00024999,2]
[405100761,1770813946181,-150.0,0.00025102,2]
[405100762,1770813946201,-17.03706843,0.00025374,2]
[405100763,1770814032087,-729.51522001,0.00025583,2]
[405100764,1770814032108,-953.37905794,0.00027051,2]
[405100765,1770814054311,-430.35222826,0.00027051,2]
[405100766,1770814054334,-177.0,0.00027102,2]
[405100767,1770814054357,-495.89712755,0.00027783,2]
[405100768,1770814172108,-150.0,0.0002589,2]
[405100769,1770814172130,-1000.0,0.00027661,30]
[405100770,1770814172151,-209.72532035,0.00027783,2]
[405100771,1770814172173,-177.0,0.0002789,2]
[405100772,1770814172193,-1591.55860072,0.00028,2]
[405100773,1770814172214,-1200.0,0.0002883,2]
[405100774,1770814172236,-2037.9473524,0.0002891,2]
[405100775,1770814172257,-300.0,0.00029001,2]
[405100776,1770814172277,-2913.98439513,0.00029002,2]
[405100777,1770814172298,-204.0,0.0002989,2]
[405100778,1770814172323,-324.0,0.0003,2]
[405100779,1770814172344,-22520.91847125,0.0003,2]
[405100780,1770814172364,-300.0,0.00030749,2]
[405100781,1770814172386,-2692.1634186,0.0003077,2]
[405100782,1770814172408,-500.0,0.00030962,2]
[405100783,1770814172433,-500.0,0.00030962,2]
[405100784,1770814172454,-500.0,0.00030962,2]
[405100785,1770814172475,-500.0,0.00030962,2]
[405100786,1770814172496,-500.0,0.00030962,2]
[405100787,1770814172518,-500.0,0.00030962,2]
[405100788,1770814172538,-2913.98439512,0.00030963,2]
[405100789,1770814172558,-420.0,0.00031289,2]
[405100791,1770814230521,624.92809312,0.00025583,2]
[405100792,1770814230605,1467.08977594,0.00028366,2]
[405100793,1770814230882,113.97221569,0.00026778,2]
[405100794,1770814230904,932.03671884,0.00026778,2]
[405100795,1770814230947,1888.17061736,0.00029954,2]
[405100816,1770814231964,-2309.25145877,0.00031541,2]
[405100818,1770814231975,-231.0,0.0003189,2]
[405100819,1770814231985,-428.373974,0.00031967,2]
[405100820,1770814231995,-895.74,0.00032592,5]
[405100821,1770814232004,-2730.33230018,0.00033129,2]
[405100822,1770814232015,-218.56259578,0.000332,117]
[405100824,1770814232025,-218.56259576,0.000332,117]
[405100826,1770814232035,-1185.3759888,0.00033385,2]
[405100828,1770814232044,-258.0,0.0003389,120]
[405100830,1770814232055,-500.0,0.00033937,7]
[405100832,1770814232064,-3151.4131416,0.00034716,2]
[405100834,1770814232074,-218.56259576,0.00034755,120]
[405100835,1770814232084,-400.0,0.00034896,2]
[405100836,1770814232094,-638.41493339,0.00034897,5]
[405100925,1770814245552,-104.348618,0.00034897,5]
[405100926,1770814245566,-152.97644861,0.00034897,5]
[405100927,1770814245575,-895.74,0.00034897,5]
[405100928,1770814245586,-895.74,0.00034999,5]
[405100929,1770814245596,-479.53426755,0.00035326,2]
[405100930,1770814245606,-168.0,0.00035516,2]
[405100931,1770814245615,-199.25257101,0.00035531,2]
[405100932,1770814245624,-895.74,0.00035609,5]
[405100934,1770814245634,-500.0,0.00035616,120]
[405100935,1770814245643,-477.65,0.0003579,120]
[405100937,1770814245652,-285.0,0.0003589,120]
[405100938,1770814245662,-2493.93254635,0.0003597,3]
[405100939,1770814245671,-276.12048631,0.00035979,15]
[405100940,1770814245681,-7887.28,0.0003598,10]
[405100941,1770814245691,-2493.93254635,0.0003598,3]
[405100942,1770814245700,-1421.53169574,0.0003599,2]
[405100945,1770814246167,-79078.31959118,0.0003599,2]
[405100946,1770814246177,-785.0,0.000362,2]
[405100947,1770814246188,-2493.93254635,0.00036254,3]
[405100948,1770814246198,-4204.58518202,0.00036264,2]
[405100949,1770814246207,-3537.3507349,0.00036304,2]
[405100950,1770814246217,-168.0,0.00036384,2]
[405100951,1770814246226,-895.74,0.00036389,5]
[405100952,1770814246235,-895.74,0.00036499,5]
[405100953,1770814246244,-741.97989042,0.0003654,2]
[405100954,1770814246253,-151.0,0.000366,11]
[405100955,1770814246262,-895.74,0.00036618,5]
[405100956,1770814246271,-250.0,0.00036619,3]
[405100957,1770814246280,-265.18555382,0.00036619,3]
[405100958,1770814246289,-209.40437684,0.00036619,3]
[405100959,1770814246298,-217.15233878,0.00036619,3]
[405100960,1770814246308,-225.18697532,0.00036619,3]
[405100961,1770814246320,-233.51889341,0.00036619,3]
[405100962,1770814246329,-242.15909246,0.00036619,3]
[405100963,1770814246338,-251.11897888,0.00036619,3]
[405100964,1770814246347,-260.4103811,0.00036619,3]
[405100965,1770814246358,-270.0455652,0.00036619,3]
[405100966,1770814246367,-280.03725112,0.00036619,3]
[405100967,1770814246376,-329.60296509,0.00036619,3]
[405100968,1770814246387,-500.0,0.00036619,3]
[405100969,1770814246397,-500.0,0.00036619,3]
[405100970,1770814246406,-500.0,0.00036619,3]
[405100971,1770814246415,-500.0,0.00036619,3]
[405100972,1770814246424,-500.0,0.00036619,3]
[405100973,1770814246433,-500.0,0.00036619,3]
[405100974,1770814246444,-500.0,0.00036619,3]
[405100975,1770814246453,-500.0,0.00036619,3]
[405100976,1770814246464,-608.28937872,0.0003662,3]
[405100977,1770814246473,-151.0,0.0003662,31]
[405100978,1770814246482,-42396.8532879,0.0003662,3]
[405100979,1770814246491,-895.74,0.00036628,5]
[405100980,1770814246501,-895.74,0.00036628,5]
[405100981,1770814246510,-895.74,0.00036629,5]
[405100982,1770814246519,-895.74,0.00036629,5]
[405100983,1770814246529,-895.74,0.00036629,5]
[405100984,1770814246538,-895.74,0.00036629,5]
[405100985,1770814246547,-895.74,0.00036629,5]
[405100986,1770814246556,-895.74,0.00036629,5]
[405100987,1770814246565,-895.74,0.00036629,5]
[405100988,1770814246575,-895.74,0.00036629,5]
[405100989,1770814246584,-895.74,0.00036629,5]
[405100990,1770814246593,-138524.39174345,0.0003663,2]
[405100991,1770814246602,-485097.31042416,0.0003663,2]
[405100992,1770814586183,4505.69,0.000237,2]
[405100993,1770814597960,980.136454,0.00030136,120]
[405100996,1770815206845,10000.0,0.000237,2]
[405100997,1770815218896,5234.0,0.000237,2]
[405100998,1770815236126,-811.12540478,0.00024953,2]
[405100999,1770815246086,-175.42844245,0.00024953,2]
[405101000,1770815246108,-150.0,0.000253,2]
[405101001,1770815246129,-549.69567996,0.00025327,2]
[405101002,1770815246151,-470.09496611,0.00026605,2]
[405101003,1770815253095,-433.97897799,0.00026605,2]
[405101004,1770815253116,-177.0,0.000273,2]
[405101005,1770815253139,-375.57486924,0.00028266,2]
[405101006,1770815254091,-168.2894278,0.00028266,2]
[405101010,1770815351112,-655.98371569,0.00025583,2]
[405101011,1770815351132,-1227.18989735,0.00027065,2]
[405101012,1770815351160,-1798.39607902,0.00028938,2]
[405101013,1770815351180,-464.63550876,0.00029101,5]
[405101014,1770815358091,-35.36449124,0.00029101,5]
[405101015,1770815358112,-204.0,0.000293,2]
[405101016,1770815358132,-400.0,0.0003009,2]
[405101017,1770815358153,-4911.0,0.00030091,2]
[405101018,1770815358175,-2369.60226068,0.00030812,2]
[405101019,1770815358197,-231.0,0.000313,2]
[405101020,1770815358219,-500.0,0.00031393,2]
[405101021,1770815358240,-170.0,0.00032427,2]
[405101022,1770815358260,-16744.39289313,0.00032471,2]
[405101023,1770815358280,-2286.90763252,0.00032471,2]
[405101024,1770815358301,-500.0,0.00032571,2]
[405101025,1770815358322,-500.0,0.00032629,5]
[405101026,1770815358344,-2940.80844235,0.00032685,2]
[405101027,1770815392881,267.30750989,0.0002589,2]
[405101074,1770815438946,-149.46878761,0.00034,2]
[405101075,1770815439009,-34.96121239,0.00034,2]
[405101076,1770815439020,-329.57918928,0.00034009,2]
[405101077,1770815439030,-3570.51462572,0.0003401,2]
[405101098,1770815440687,-13839.13039988,0.0003401,2]
[405101100,1770815440700,-507.903367,0.0003401,2]
[405101102,1770815440710,-188.236887,0.00034217,2]
[405101104,1770815440720,-3512.01462402,0.00034559,2]
[405101106,1770815440729,-227.92,0.0003481,2]
[405101108,1770815440739,-500.0,0.00034986,5]
[405101110,1770815440748,-3930.4655345,0.00035,30]
[405101112,1770815440757,-168.0,0.00035249,2]
[405101114,1770815440767,-742.38915205,0.00035352,2]
[405101116,1770815440777,-150.0,0.00035368,2]
[405101117,1770815440786,-2164.0,0.00035368,2]
[405101119,1770815440795,-344.712,0.00035368,2]
[405101121,1770815440804,-500.0,0.00035608,5]
[405101123,1770815440813,-546.28201652,0.00035616,120]
[405101125,1770815440821,-242.04967906,0.00035914,2]
[405101128,1770815440831,-500.0,0.00035979,5]
[405101130,1770815440840,-500.0,0.00035979,5]
[405101132,1770815440849,-500.0,0.00035989,5]
[405101135,1770815440858,-500.0,0.00035989,5]
[405101137,1770815440867,-500.0,0.00035989,5]
[405101140,1770815440876,-478.77215166,0.00035989,5]
[405101142,1770815440885,-500.0,0.0003613,30]
[405101144,1770815440894,-1348.36111205,0.00036244,3]
[405101197,1770815446261,-1966.09481589,0.00036244,3]
[405101198,1770815446273,-3484.32705575,0.00036244,10]
[405101199,1770815446421,-4104.04294425,0.00036244,10]
[405101200,1770815446431,-12994.03,0.00036254,10]
[405101201,1770815446440,-38908.75728899,0.00036254,14]
[405101202,1770815446449,-9943.36778382,0.00036254,3]
[405101203,1770815446458,-170486.26558807,0.00036264,2]
[405101209,1770815460722,1434.4805824,0.00024953,2]
[405101214,1770815884308,500.0,0.00013273,2]
[405101215,1770815884360,500.0,0.00013821,2]
[405101216,1770816067221,500.74535608,0.00013273,2]
[405101217,1770816125294,505.59180155,0.00013273,2]
[405101219,1770816306734,500.0,0.00013273,2]
[405101220,1770816306784,604.02701138,0.00013821,2]
[405101221,1770816428132,-1503.92031683,0.00025327,2]
[405101223,1770816505546,1255.14505195,0.00017,2]
[405101224,1770816550133,-455.29302878,0.00024403,2]
[405101225,1770816550153,-1504.70697122,0.0002465,2]
[405101226,1770816553107,-44.57811101,0.0002465,2]
[405101227,1770816567096,-831.0,0.00025583,2]
[405101228,1770816567122,-576.05887065,0.00025583,2]
[405101229,1770816567143,-1057.03771073,0.00027134,2]
[405101230,1770816567163,-300.0,0.00029068,2]
[405101231,1770816567186,-1538.0165508,0.00029076,2]